{"text_format":"3","workbook":"xlsx","n_sheets":7,"sheets":["Lundi","Mardi","Mercredi","Jeudi","Vendredi","Samedi","Dimanche"],"not_rendered":{"defined_names":21},"read":"whole","date_system":"1900"}

{"sheet":"Lundi","index":0,"n_rows":10,"n_cols":13,"rows_kept":10,"merged":[[1,1,1,4],[1,8,1,9],[1,10,1,12],[2,1,2,4],[2,8,2,9],[2,10,2,12]]}
[]
[null,"PLANIFICATION DES SHIFTS",{"$nulls":6},"Pour la semaine du : ",null,"Date"]
[null,"Lundi",{"$nulls":6},"Nom du service : ",null,"Nom"]
[]
[null,"Employé","7:00","8:00","9:00","10:00","11:00","12:00","13:00","14:00","15:00","Maladie ?","Total"]
[null,"Nom 1","Responsable","Responsable","Responsable","Responsable","Responsable","Responsable","Responsable","Responsable","Responsable",null,{"$f":"COUNTIF(Lundi[[#This Row],[7:00]:[15:00]],\"*\")","v":9}]
[null,"Nom 2",null,"Caissier","Caissier","Caissier","Caissier",{"$nulls":5},{"$f":"COUNTIF(Lundi[[#This Row],[7:00]:[15:00]],\"*\")","v":4}]
[null,"Nom 3",null,"Réception","Réception","Réception","Réception","Réception","Réception","Réception",null,null,{"$f":"COUNTIF(Lundi[[#This Row],[7:00]:[15:00]],\"*\")","v":7}]
[null,"Nom 4",null,"Réception","Réception","Réception","Réception","Réception","Réception","Réception",null,null,{"$f":"COUNTIF(Lundi[[#This Row],[7:00]:[15:00]],\"*\")","v":7}]
[null,"Nom 5",{"$nulls":9},"Maladie",{"$f":"COUNTIF(Lundi[[#This Row],[7:00]:[15:00]],\"*\")","v":0}]

{"sheet":"Mardi","index":1,"n_rows":10,"n_cols":13,"rows_kept":10,"merged":[[1,1,1,4],[1,8,1,9],[1,10,1,12],[2,1,2,4],[2,8,2,9],[2,10,2,12]]}
[]
[null,"PLANIFICATION DES SHIFTS",{"$nulls":6},"Pour la semaine du : ",null,"Date"]
[null,"Mardi",{"$nulls":6},"Nom du service : ",null,"Nom"]
[]
[null,"Employé","7:00","8:00","9:00","10:00","11:00","12:00","13:00","14:00","15:00","Maladie ?","Total"]
[null,"Nom 1","Responsable","Responsable","Responsable","Responsable","Responsable","Responsable","Responsable","Responsable","Responsable",null,{"$f":"COUNTIF(Mardi[[#This Row],[7:00]:[15:00]],\"*\")","v":9}]
[null,"Nom 2",null,"Caissier","Caissier","Caissier","Caissier",{"$nulls":5},{"$f":"COUNTIF(Mardi[[#This Row],[7:00]:[15:00]],\"*\")","v":4}]
[null,"Nom 3",null,"Réception","Réception","Réception","Réception","Réception","Réception","Réception",null,null,{"$f":"COUNTIF(Mardi[[#This Row],[7:00]:[15:00]],\"*\")","v":7}]
[null,"Nom 4",null,"Réception","Réception","Réception","Réception","Réception","Réception","Réception",null,null,{"$f":"COUNTIF(Mardi[[#This Row],[7:00]:[15:00]],\"*\")","v":7}]
[null,"Nom 5",{"$nulls":9},"Maladie",{"$f":"COUNTIF(Mardi[[#This Row],[7:00]:[15:00]],\"*\")","v":0}]

{"sheet":"Mercredi","index":2,"n_rows":10,"n_cols":13,"rows_kept":10,"merged":[[1,1,1,4],[1,8,1,9],[1,10,1,12],[2,1,2,4],[2,8,2,9],[2,10,2,12]]}
[]
[null,"PLANIFICATION DES SHIFTS",{"$nulls":6},"Pour la semaine du : ",null,"Date"]
[null,"Mercredi",{"$nulls":6},"Nom du service : ",null,"Nom"]
[]
[null,"Employé","7:00","8:00","9:00","10:00","11:00","12:00","13:00","14:00","15:00","Maladie ?","Total"]
[null,"Nom 1","Responsable","Responsable","Responsable","Responsable","Responsable","Responsable","Responsable","Responsable","Responsable",null,{"$f":"COUNTIF(Mercredi[[#This Row],[7:00]:[15:00]],\"*\")","v":9}]
[null,"Nom 2",null,"Caissier","Caissier","Caissier","Caissier",{"$nulls":5},{"$f":"COUNTIF(Mercredi[[#This Row],[7:00]:[15:00]],\"*\")","v":4}]
[null,"Nom 3",null,"Réception","Réception","Réception","Réception","Réception","Réception","Réception",null,null,{"$f":"COUNTIF(Mercredi[[#This Row],[7:00]:[15:00]],\"*\")","v":7}]
[null,"Nom 4",null,"Réception","Réception","Réception","Réception","Réception","Réception","Réception",null,null,{"$f":"COUNTIF(Mercredi[[#This Row],[7:00]:[15:00]],\"*\")","v":7}]
[null,"Nom 5",{"$nulls":9},"Maladie",{"$f":"COUNTIF(Mercredi[[#This Row],[7:00]:[15:00]],\"*\")","v":0}]

{"sheet":"Jeudi","index":3,"n_rows":10,"n_cols":13,"rows_kept":10,"merged":[[1,1,1,4],[1,8,1,9],[1,10,1,12],[2,1,2,4],[2,8,2,9],[2,10,2,12]]}
[]
[null,"PLANIFICATION DES SHIFTS",{"$nulls":6},"Pour la semaine du : ",null,"Date"]
[null,"Jeudi",{"$nulls":6},"Nom du service : ",null,"Nom"]
[]
[null,"Employé","7:00","8:00","9:00","10:00","11:00","12:00","13:00","14:00","15:00","Maladie ?","Total"]
[null,"Nom 1","Responsable","Responsable","Responsable","Responsable","Responsable","Responsable","Responsable","Responsable","Responsable",null,{"$f":"COUNTIF(Jeudi[[#This Row],[7:00]:[15:00]],\"*\")","v":9}]
[null,"Nom 2",null,"Caissier","Caissier","Caissier","Caissier",{"$nulls":5},{"$f":"COUNTIF(Jeudi[[#This Row],[7:00]:[15:00]],\"*\")","v":4}]
[null,"Nom 3",null,"Réception","Réception","Réception","Réception","Réception","Réception","Réception",null,null,{"$f":"COUNTIF(Jeudi[[#This Row],[7:00]:[15:00]],\"*\")","v":7}]
[null,"Nom 4",null,"Réception","Réception","Réception","Réception","Réception","Réception","Réception",null,null,{"$f":"COUNTIF(Jeudi[[#This Row],[7:00]:[15:00]],\"*\")","v":7}]
[null,"Nom 5",{"$nulls":9},"Maladie",{"$f":"COUNTIF(Jeudi[[#This Row],[7:00]:[15:00]],\"*\")","v":0}]

{"sheet":"Vendredi","index":4,"n_rows":10,"n_cols":13,"rows_kept":10,"merged":[[1,1,1,4],[1,8,1,9],[1,10,1,12],[2,1,2,4],[2,8,2,9],[2,10,2,12]]}
[]
[null,"PLANIFICATION DES SHIFTS",{"$nulls":6},"Pour la semaine du : ",null,"Date"]
[null,"Vendredi",{"$nulls":6},"Nom du service : ",null,"Nom"]
[]
[null,"Employé","7:00","8:00","9:00","10:00","11:00","12:00","13:00","14:00","15:00","Maladie ?","Total"]
[null,"Nom 1","Responsable","Responsable","Responsable","Responsable","Responsable","Responsable","Responsable","Responsable","Responsable",null,{"$f":"COUNTIF(Vendredi[[#This Row],[7:00]:[15:00]],\"*\")","v":9}]
[null,"Nom 2",null,"Caissier","Caissier","Caissier","Caissier",{"$nulls":5},{"$f":"COUNTIF(Vendredi[[#This Row],[7:00]:[15:00]],\"*\")","v":4}]
[null,"Nom 3",null,"Réception","Réception","Réception","Réception","Réception","Réception","Réception",null,null,{"$f":"COUNTIF(Vendredi[[#This Row],[7:00]:[15:00]],\"*\")","v":7}]
[null,"Nom 4",null,"Réception","Réception","Réception","Réception","Réception","Réception","Réception",null,null,{"$f":"COUNTIF(Vendredi[[#This Row],[7:00]:[15:00]],\"*\")","v":7}]
[null,"Nom 5",{"$nulls":9},"Maladie",{"$f":"COUNTIF(Vendredi[[#This Row],[7:00]:[15:00]],\"*\")","v":0}]

{"sheet":"Samedi","index":5,"n_rows":10,"n_cols":13,"rows_kept":10,"merged":[[1,1,1,4],[1,8,1,9],[1,10,1,12],[2,1,2,4],[2,8,2,9],[2,10,2,12]]}
[]
[null,"PLANIFICATION DES SHIFTS",{"$nulls":6},"Pour la semaine du : ",null,"Date"]
[null,"Samedi",{"$nulls":6},"Nom du service : ",null,"Nom"]
[]
[null,"Employé","7:00","8:00","9:00","10:00","11:00","12:00","13:00","14:00","15:00","Maladie ?","Total"]
[null,"Nom 1","Responsable","Responsable","Responsable","Responsable","Responsable","Responsable","Responsable","Responsable","Responsable",null,{"$f":"COUNTIF(Samedi[[#This Row],[7:00]:[15:00]],\"*\")","v":9}]
[null,"Nom 2",null,"Caissier","Caissier","Caissier","Caissier",{"$nulls":5},{"$f":"COUNTIF(Samedi[[#This Row],[7:00]:[15:00]],\"*\")","v":4}]
[null,"Nom 3",null,"Réception","Réception","Réception","Réception","Réception","Réception","Réception",null,null,{"$f":"COUNTIF(Samedi[[#This Row],[7:00]:[15:00]],\"*\")","v":7}]
[null,"Nom 4",null,"Réception","Réception","Réception","Réception","Réception","Réception","Réception",null,null,{"$f":"COUNTIF(Samedi[[#This Row],[7:00]:[15:00]],\"*\")","v":7}]
[null,"Nom 5",{"$nulls":9},"Maladie",{"$f":"COUNTIF(Samedi[[#This Row],[7:00]:[15:00]],\"*\")","v":0}]

{"sheet":"Dimanche","index":6,"n_rows":10,"n_cols":13,"rows_kept":10,"merged":[[1,1,1,4],[1,8,1,9],[1,10,1,12],[2,1,2,4],[2,8,2,9],[2,10,2,12]]}
[]
[null,"PLANIFICATION DES SHIFTS",{"$nulls":6},"Pour la semaine du : ",null,"Date"]
[null,"Dimanche",{"$nulls":6},"Nom du service : ",null,"Nom"]
[]
[null,"Employé","7:00","8:00","9:00","10:00","11:00","12:00","13:00","14:00","15:00","Maladie ?","Total"]
[null,"Nom 1","Responsable","Responsable","Responsable","Responsable","Responsable","Responsable","Responsable","Responsable","Responsable",null,{"$f":"COUNTIF(Dimanche[[#This Row],[7:00]:[15:00]],\"*\")","v":9}]
[null,"Nom 2",null,"Caissier","Caissier","Caissier","Caissier",{"$nulls":5},{"$f":"COUNTIF(Dimanche[[#This Row],[7:00]:[15:00]],\"*\")","v":4}]
[null,"Nom 3",null,"Réception","Réception","Réception","Réception","Réception","Réception","Réception",null,null,{"$f":"COUNTIF(Dimanche[[#This Row],[7:00]:[15:00]],\"*\")","v":7}]
[null,"Nom 4",null,"Réception","Réception","Réception","Réception","Réception","Réception","Réception",null,null,{"$f":"COUNTIF(Dimanche[[#This Row],[7:00]:[15:00]],\"*\")","v":7}]
[null,"Nom 5",{"$nulls":9},"Maladie",{"$f":"COUNTIF(Dimanche[[#This Row],[7:00]:[15:00]],\"*\")","v":0}]